[Event "Titled Tuesday Blitz December 27 Late 2022"]
[White "Fiorito, Joaquin"]
[Black "Kobo, Ori"]
[WhiteFideId "180173"]
[BlackFideId "2812320"]
[WhiteElo "2405"]
[BlackElo "2559"]
[Result "0-1"]
[Round "02"]
[TimeControl "180+2"]
[Date "2022.12.27"]
[WhiteClock "0:00:11"]
[BlackClock "0:00:07"]

1. d4 {[%clk 0:03:00]}  Nf6 {[%clk 0:02:59]} 2. Nc3 {[%clk 0:03:01]}  d5 {[%clk 0:02:58]} 3. Bf4 {[%clk 0:03:01]}  c5 {[%clk 0:02:55]} 4. e4 {[%clk 0:02:59]}  Nxe4 {[%clk 0:02:53]} 5. Bb5+ {[%clk 0:02:58]}  Nc6 {[%clk 0:02:37]} 6. Nxe4 {[%clk 0:02:58]}  dxe4 {[%clk 0:02:34]} 7. Ne2 {[%clk 0:02:58]}  Bd7 {[%clk 0:02:22]} 8. dxc5 {[%clk 0:02:32]}  Qa5+ {[%clk 0:02:03]} 9. Nc3 {[%clk 0:02:32]}  e5 {[%clk 0:02:03]} 10. Bxc6 {[%clk 0:01:37]}  Bxc6 {[%clk 0:02:04]} 11. Bxe5 {[%clk 0:01:38]}  Qxc5 {[%clk 0:02:04]} 12. Bf4 {[%clk 0:01:00]}  Be7 {[%clk 0:01:57]} 13. O-O {[%clk 0:00:57]}  O-O {[%clk 0:01:57]} 14. Qe2 {[%clk 0:00:48]}  Rfe8 {[%clk 0:01:50]} 15. Rfd1 {[%clk 0:00:44]}  Bf6 {[%clk 0:01:42]} 16. Be3 {[%clk 0:00:42]}  Qb4 {[%clk 0:01:35]} 17. Rab1 {[%clk 0:00:39]}  Rad8 {[%clk 0:01:17]} 18. a3 {[%clk 0:00:27]}  Qa5 {[%clk 0:01:09]} 19. Qc4 {[%clk 0:00:26]}  a6 {[%clk 0:00:48]} 20. Rxd8 {[%clk 0:00:13]}  Qxd8 {[%clk 0:00:40]} 21. Rd1 {[%clk 0:00:13]}  Qe7 {[%clk 0:00:37]} 22. Bc5 {[%clk 0:00:13]}  Qe6 {[%clk 0:00:35]} 23. Qxe6 {[%clk 0:00:13]}  Rxe6 {[%clk 0:00:36]} 24. Bd4 {[%clk 0:00:12]}  Be7 {[%clk 0:00:33]} 25. Be3 {[%clk 0:00:12]}  f5 {[%clk 0:00:21]} 26. Nd5 {[%clk 0:00:11]}  Bf8 {[%clk 0:00:18]} 27. g3 {[%clk 0:00:10]}  Kf7 {[%clk 0:00:16]} 28. c4 {[%clk 0:00:11]}  h6 {[%clk 0:00:16]} 29. h4 {[%clk 0:00:10]}  Rd6 {[%clk 0:00:13]} 30. Bc5 {[%clk 0:00:09]}  Rd8 {[%clk 0:00:13]} 31. Bxf8 {[%clk 0:00:09]}  Kxf8 {[%clk 0:00:14]} 32. Kf1 {[%clk 0:00:07]}  g5 {[%clk 0:00:13]} 33. hxg5 {[%clk 0:00:07]}  hxg5 {[%clk 0:00:14]} 34. Ne3 {[%clk 0:00:06]}  Rxd1+ {[%clk 0:00:12]} 35. Nxd1 {[%clk 0:00:07]}  f4 {[%clk 0:00:09]} 36. gxf4 {[%clk 0:00:08]}  gxf4 {[%clk 0:00:10]} 37. Nc3 {[%clk 0:00:08]}  Kf7 {[%clk 0:00:10]} 38. b4 {[%clk 0:00:09]}  Ke6 {[%clk 0:00:10]} 39. b5 {[%clk 0:00:09]}  axb5 {[%clk 0:00:09]} 40. cxb5 {[%clk 0:00:10]}  Bd5 {[%clk 0:00:07]} 41. Ke1 {[%clk 0:00:10]}  Ke5 {[%clk 0:00:06]} 42. Kd2 {[%clk 0:00:11]}  Bc4 {[%clk 0:00:06]} 43. a4 {[%clk 0:00:10]}  Kd4 {[%clk 0:00:05]} 44. Nd1 {[%clk 0:00:10]}  Bb3 {[%clk 0:00:06]} 45. a5 {[%clk 0:00:08]}  Kc5 {[%clk 0:00:04]} 46. Nc3 {[%clk 0:00:08]}  Bc4 {[%clk 0:00:03]} 47. a6 {[%clk 0:00:07]}  bxa6 {[%clk 0:00:03]} 48. bxa6 {[%clk 0:00:08]}  Bxa6 {[%clk 0:00:03]} 49. Nxe4+ {[%clk 0:00:08]}  Kd4 {[%clk 0:00:04]} 50. Ng5 {[%clk 0:00:09]}  Ke5 {[%clk 0:00:04]} 51. Nf3+ {[%clk 0:00:08]}  Kf5 {[%clk 0:00:04]} 52. Nd4+ {[%clk 0:00:09]}  Kg4 {[%clk 0:00:05]} 53. Ke1 {[%clk 0:00:09]}  Bd3 {[%clk 0:00:04]} 54. Nc6 {[%clk 0:00:09]}  Be4 {[%clk 0:00:04]} 55. Ne5+ {[%clk 0:00:10]}  Kf5 {[%clk 0:00:05]} 56. Nc4 {[%clk 0:00:10]}  Bd5 {[%clk 0:00:05]} 57. Nd2 {[%clk 0:00:11]}  Ke5 {[%clk 0:00:05]} 58. Ke2 {[%clk 0:00:11]}  Be6 {[%clk 0:00:05]} 59. Nf3+ {[%clk 0:00:11]}  Kf6 {[%clk 0:00:06]} 60. Nd4 {[%clk 0:00:12]}  Bd5 {[%clk 0:00:06]} 61. f3 {[%clk 0:00:12]}  Ke5 {[%clk 0:00:06]} 62. Kf2 {[%clk 0:00:12]}  Kxd4 {[%clk 0:00:06]} 63. Ke1 {[%clk 0:00:08]}  Ke3 {[%clk 0:00:06]} 64. Kf1 {[%clk 0:00:08]}  Kxf3 {[%clk 0:00:06]} 65. Kg1 {[%clk 0:00:09]}  Kg3 {[%clk 0:00:07]} 66. Kf1 {[%clk 0:00:10]}  Bg2+ {[%clk 0:00:06]} 67. Kg1 {[%clk 0:00:10]}  Bh3 {[%clk 0:00:07]} 68. Kh1 {[%clk 0:00:11]}  f3 {[%clk 0:00:07]} 69. Kg1 {[%clk 0:00:11]}  f2+ {[%clk 0:00:07]} 0-1


[Site "https://www.chess.com"]

[Event "Titled Tuesday Blitz December 27 Late 2022"]
[White "Fisher_TheGalactic"]
[Black "Finkelstein, Alan"]
[BlackFideId "30950961"]
[WhiteElo "2477"]
[BlackElo "2152"]
[Result "1-0"]
[Round "02"]
[TimeControl "180+2"]
[Date "2022.12.27"]
[WhiteClock "0:01:46"]
[BlackClock "0:00:02"]

1. Nf3 {[%clk 0:03:00]}  d5 {[%clk 0:02:59]} 2. g3 {[%clk 0:03:01]}  Nf6 {[%clk 0:02:59]} 3. Bg2 {[%clk 0:03:02]}  g6 {[%clk 0:02:58]} 4. O-O {[%clk 0:03:03]}  Bg7 {[%clk 0:02:58]} 5. d3 {[%clk 0:03:03]}  O-O {[%clk 0:02:58]} 6. Nbd2 {[%clk 0:03:04]}  Nc6 {[%clk 0:02:58]} 7. e4 {[%clk 0:03:05]}  e5 {[%clk 0:02:57]} 8. exd5 {[%clk 0:03:05]}  Nxd5 {[%clk 0:02:57]} 9. Nc4 {[%clk 0:03:06]}  f6 {[%clk 0:02:33]} 10. c3 {[%clk 0:03:04]}  Be6 {[%clk 0:02:33]} 11. Ne3 {[%clk 0:03:02]}  Qd7 {[%clk 0:02:24]} 12. Qe2 {[%clk 0:02:58]}  Rad8 {[%clk 0:02:17]} 13. Rd1 {[%clk 0:02:58]}  Rfe8 {[%clk 0:02:10]} 14. Nxd5 {[%clk 0:02:57]}  Bxd5 {[%clk 0:02:10]} 15. Be3 {[%clk 0:02:58]}  Qf7 {[%clk 0:02:01]} 16. b4 {[%clk 0:02:52]}  a6 {[%clk 0:01:58]} 17. a4 {[%clk 0:02:49]}  Be6 {[%clk 0:01:41]} 18. b5 {[%clk 0:02:47]}  Ne7 {[%clk 0:01:21]} 19. c4 {[%clk 0:02:39]}  Nf5 {[%clk 0:01:17]} 20. Nd2 {[%clk 0:02:33]}  axb5 {[%clk 0:01:05]} 21. axb5 {[%clk 0:02:31]}  b6 {[%clk 0:01:05]} 22. Ra7 {[%clk 0:02:30]}  Nd4 {[%clk 0:01:06]} 23. Bxd4 {[%clk 0:02:30]}  Rxd4 {[%clk 0:01:07]} 24. Rda1 {[%clk 0:02:24]}  Red8 {[%clk 0:01:02]} 25. Ra8 {[%clk 0:02:24]}  Qe8 {[%clk 0:01:01]} 26. Rxd8 {[%clk 0:02:23]}  Qxd8 {[%clk 0:01:02]} 27. Ra8 {[%clk 0:02:23]}  Bc8 {[%clk 0:00:52]} 28. Bd5+ {[%clk 0:02:14]}  Kf8 {[%clk 0:00:35]} 29. Nb3 {[%clk 0:02:09]}  Rxd5 {[%clk 0:00:18]} 30. cxd5 {[%clk 0:02:10]}  Ke7 {[%clk 0:00:18]} 31. Nd4 {[%clk 0:02:09]}  Kd7 {[%clk 0:00:06]} 32. Qg4+ {[%clk 0:01:56]}  f5 {[%clk 0:00:06]} 33. Nxf5 {[%clk 0:01:57]}  gxf5 {[%clk 0:00:01]} 34. Qxf5+ {[%clk 0:01:57]}  Kd6 {[%clk 0:00:02]} 35. Rxc8 {[%clk 0:01:56]}  Qe7 {[%clk 0:00:02]} 36. Qe6+ {[%clk 0:01:48]}  Qxe6 {[%clk 0:00:03]} 37. dxe6 {[%clk 0:01:49]}  Bf6 {[%clk 0:00:02]} 38. Kg2 {[%clk 0:01:46]} 1-0


[Site "https://www.chess.com"]

[Event "Titled Tuesday Blitz December 27 Late 2022"]
[White "Floresvillar Gonzalez, Luis Migu"]
[Black "Garcia Cuenca, Victor"]
[WhiteFideId "5100542"]
[BlackFideId "2250829"]
[WhiteElo "2043"]
[BlackElo "2324"]
[Result "0-1"]
[Round "02"]
[TimeControl "180+2"]
[Date "2022.12.27"]
[WhiteClock "0:00:02"]
[BlackClock "0:00:04"]

1. d4 {[%clk 0:02:56]}  Nf6 {[%clk 0:02:59]} 2. c3 {[%clk 0:02:55]}  e6 {[%clk 0:02:56]} 3. Bg5 {[%clk 0:02:55]}  d5 {[%clk 0:02:56]} 4. Nd2 {[%clk 0:02:50]}  c5 {[%clk 0:02:55]} 5. e3 {[%clk 0:02:50]}  b6 {[%clk 0:02:53]} 6. Bb5+ {[%clk 0:02:46]}  Bd7 {[%clk 0:02:52]} 7. Bd3 {[%clk 0:02:45]}  Nc6 {[%clk 0:02:42]} 8. f4 {[%clk 0:02:44]}  h6 {[%clk 0:02:40]} 9. Bh4 {[%clk 0:02:39]}  g5 {[%clk 0:02:24]} 10. fxg5 {[%clk 0:02:36]}  Nh7 {[%clk 0:02:23]} 11. Ngf3 {[%clk 0:02:30]}  hxg5 {[%clk 0:02:22]} 12. Bxh7 {[%clk 0:02:19]}  gxh4 {[%clk 0:02:19]} 13. Bd3 {[%clk 0:02:03]}  f5 {[%clk 0:02:13]} 14. Qe2 {[%clk 0:02:01]}  c4 {[%clk 0:02:12]} 15. Bc2 {[%clk 0:02:00]}  Bd6 {[%clk 0:02:12]} 16. O-O-O {[%clk 0:01:52]}  b5 {[%clk 0:02:06]} 17. Nf1 {[%clk 0:01:10]}  b4 {[%clk 0:01:55]} 18. g3 {[%clk 0:01:07]}  hxg3 {[%clk 0:01:47]} 19. Nxg3 {[%clk 0:01:06]}  Qa5 {[%clk 0:01:44]} 20. Kd2 {[%clk 0:00:47]}  bxc3+ {[%clk 0:01:39]} 21. bxc3 {[%clk 0:00:47]}  Rb8 {[%clk 0:01:25]} 22. Rb1 {[%clk 0:00:44]}  Ke7 {[%clk 0:01:21]} 23. a4 {[%clk 0:00:40]}  f4 {[%clk 0:00:36]} 24. Nf1 {[%clk 0:00:16]}  Rxb1 {[%clk 0:00:20]} 25. Bxb1 {[%clk 0:00:15]}  Qxa4 {[%clk 0:00:18]} 26. exf4 {[%clk 0:00:15]}  Rb8 {[%clk 0:00:12]} 27. Bc2 {[%clk 0:00:14]}  Bxf4+ {[%clk 0:00:12]} 28. Ne3 {[%clk 0:00:13]}  Rb2 {[%clk 0:00:10]} 29. Rc1 {[%clk 0:00:12]}  Be8 {[%clk 0:00:06]} 30. Ne5 {[%clk 0:00:04]}  Nxe5 {[%clk 0:00:05]} 31. dxe5 {[%clk 0:00:03]}  d4 {[%clk 0:00:06]} 32. cxd4 {[%clk 0:00:02]}  Qb4+ {[%clk 0:00:04]} 33. Kd1 {[%clk 0:00:02]}  Qc3 {[%clk 0:00:04]} 0-1


[Site "https://www.chess.com"]

[Event "Titled Tuesday Blitz December 27 Late 2022"]
[White "Foisor, Sabina-Francesca"]
[Black "Poliakova, Varvara"]
[WhiteFideId "1212915"]
[BlackFideId "13518313"]
[WhiteElo "2185"]
[BlackElo "2010"]
[Result "1-0"]
[Round "02"]
[TimeControl "180+2"]
[Date "2022.12.27"]
[WhiteClock "0:00:14"]
[BlackClock "0:00:56"]

1. d4 {[%clk 0:03:00]}  f5 {[%clk 0:02:58]} 2. g3 {[%clk 0:02:59]}  d6 {[%clk 0:02:54]} 3. Bg2 {[%clk 0:03:00]}  Nf6 {[%clk 0:02:55]} 4. c4 {[%clk 0:02:59]}  g6 {[%clk 0:02:56]} 5. Nh3 {[%clk 0:02:57]}  Bg7 {[%clk 0:02:56]} 6. O-O {[%clk 0:02:57]}  O-O {[%clk 0:02:56]} 7. Nc3 {[%clk 0:02:58]}  e5 {[%clk 0:02:56]} 8. dxe5 {[%clk 0:02:46]}  dxe5 {[%clk 0:02:57]} 9. Bg5 {[%clk 0:02:46]}  c6 {[%clk 0:02:53]} 10. Qxd8 {[%clk 0:02:40]}  Rxd8 {[%clk 0:02:54]} 11. e4 {[%clk 0:02:39]}  h6 {[%clk 0:02:50]} 12. Rad1 {[%clk 0:02:17]}  Nbd7 {[%clk 0:02:43]} 13. Bxf6 {[%clk 0:02:01]}  Bxf6 {[%clk 0:02:44]} 14. f4 {[%clk 0:02:01]}  Nb6 {[%clk 0:02:20]} 15. Rxd8+ {[%clk 0:01:32]}  Bxd8 {[%clk 0:02:21]} 16. c5 {[%clk 0:01:30]}  Nc4 {[%clk 0:02:21]} 17. b3 {[%clk 0:01:29]}  Ne3 {[%clk 0:02:19]} 18. Re1 {[%clk 0:01:23]}  Nxg2 {[%clk 0:02:19]} 19. Kxg2 {[%clk 0:01:24]}  exf4 {[%clk 0:02:00]} 20. Nxf4 {[%clk 0:01:18]}  g5 {[%clk 0:02:00]} 21. Nd3 {[%clk 0:00:55]}  Bf6 {[%clk 0:01:51]} 22. e5 {[%clk 0:00:50]}  Be7 {[%clk 0:01:51]} 23. e6 {[%clk 0:00:38]}  b6 {[%clk 0:01:51]} 24. b4 {[%clk 0:00:33]}  Ba6 {[%clk 0:01:48]} 25. Ne5 {[%clk 0:00:32]}  Rd8 {[%clk 0:01:45]} 26. Nxc6 {[%clk 0:00:29]}  Bb7 {[%clk 0:01:41]} 27. b5 {[%clk 0:00:27]}  Bxc5 {[%clk 0:01:34]} 28. e7 {[%clk 0:00:20]}  Re8 {[%clk 0:01:27]} 29. Nd5 {[%clk 0:00:21]}  Kf7 {[%clk 0:01:26]} 30. Kf1 {[%clk 0:00:15]}  a6 {[%clk 0:01:18]} 31. a4 {[%clk 0:00:14]}  axb5 {[%clk 0:01:17]} 32. axb5 {[%clk 0:00:15]}  Bd6 {[%clk 0:01:08]} 33. Nd8+ {[%clk 0:00:14]}  Kg6 {[%clk 0:01:01]} 34. Nxb7 {[%clk 0:00:13]}  Bb8 {[%clk 0:01:02]} 35. Re6+ {[%clk 0:00:12]}  Kf7 {[%clk 0:01:01]} 36. Rxb6 {[%clk 0:00:12]}  f4 {[%clk 0:00:59]} 37. Rf6+ {[%clk 0:00:13]}  Kg7 {[%clk 0:00:59]} 38. gxf4 {[%clk 0:00:13]}  gxf4 {[%clk 0:00:59]} 39. Nd6 {[%clk 0:00:13]}  Bxd6 {[%clk 0:00:56]} 40. Rxd6 {[%clk 0:00:14]} 1-0


[Site "https://www.chess.com"]

[Event "Titled Tuesday Blitz December 27 Late 2022"]
[White "Goltseva, Ekaterina"]
[Black "Alekseenko, Kirill"]
[WhiteFideId "24173770"]
[BlackFideId "4135539"]
[WhiteElo "2283"]
[BlackElo "2686"]
[Result "0-1"]
[Round "02"]
[TimeControl "180+2"]
[Date "2022.12.27"]
[WhiteClock "0:00:07"]
[BlackClock "0:00:13"]

1. d4 {[%clk 0:03:00]}  d5 {[%clk 0:03:00]} 2. c4 {[%clk 0:02:54]}  dxc4 {[%clk 0:03:00]} 3. Nf3 {[%clk 0:02:49]}  a6 {[%clk 0:03:00]} 4. e3 {[%clk 0:02:48]}  Bg4 {[%clk 0:02:57]} 5. Bxc4 {[%clk 0:02:44]}  e6 {[%clk 0:02:57]} 6. h3 {[%clk 0:02:42]}  Bh5 {[%clk 0:02:55]} 7. Nc3 {[%clk 0:02:40]}  Nc6 {[%clk 0:02:55]} 8. O-O {[%clk 0:02:39]}  Nf6 {[%clk 0:02:55]} 9. b3 {[%clk 0:02:40]}  Bd6 {[%clk 0:02:53]} 10. Be2 {[%clk 0:02:40]}  O-O {[%clk 0:02:52]} 11. Bb2 {[%clk 0:02:39]}  Qe8 {[%clk 0:02:52]} 12. Na4 {[%clk 0:02:23]}  Rd8 {[%clk 0:02:46]} 13. Qc1 {[%clk 0:02:01]}  Nb4 {[%clk 0:02:42]} 14. Nc5 {[%clk 0:01:40]}  Qc6 {[%clk 0:02:35]} 15. a3 {[%clk 0:01:32]}  Bxc5 {[%clk 0:02:35]} 16. axb4 {[%clk 0:01:26]}  Bxb4 {[%clk 0:02:31]} 17. Qxc6 {[%clk 0:01:26]}  bxc6 {[%clk 0:02:32]} 18. Rxa6 {[%clk 0:01:24]}  c5 {[%clk 0:02:33]} 19. dxc5 {[%clk 0:01:13]}  Bxc5 {[%clk 0:02:33]} 20. Bxf6 {[%clk 0:00:57]}  gxf6 {[%clk 0:02:32]} 21. Ra5 {[%clk 0:00:57]}  Bxf3 {[%clk 0:02:16]} 22. Bxf3 {[%clk 0:00:56]}  Bb6 {[%clk 0:02:16]} 23. Ra2 {[%clk 0:00:53]}  Rd3 {[%clk 0:02:14]} 24. Rb1 {[%clk 0:00:51]}  Rfd8 {[%clk 0:02:12]} 25. Rc2 {[%clk 0:00:48]}  f5 {[%clk 0:02:11]} 26. Be2 {[%clk 0:00:47]}  R3d6 {[%clk 0:02:10]} 27. g3 {[%clk 0:00:40]}  Kg7 {[%clk 0:02:09]} 28. Kg2 {[%clk 0:00:41]}  Kf6 {[%clk 0:02:08]} 29. Bc4 {[%clk 0:00:37]}  Rd2 {[%clk 0:02:07]} 30. Rbb2 {[%clk 0:00:37]}  Rd1 {[%clk 0:02:05]} 31. Re2 {[%clk 0:00:33]}  R1d6 {[%clk 0:01:55]} 32. Rbc2 {[%clk 0:00:32]}  Ba5 {[%clk 0:01:53]} 33. Ra2 {[%clk 0:00:31]}  Bb4 {[%clk 0:01:51]} 34. Ra4 {[%clk 0:00:30]}  c5 {[%clk 0:01:51]} 35. Ra7 {[%clk 0:00:28]}  Rd1 {[%clk 0:01:50]} 36. Kf3 {[%clk 0:00:25]}  Rc1 {[%clk 0:01:38]} 37. e4 {[%clk 0:00:24]}  fxe4+ {[%clk 0:01:29]} 38. Rxe4 {[%clk 0:00:24]}  Rd4 {[%clk 0:01:29]} 39. Re2 {[%clk 0:00:11]}  Rd6 {[%clk 0:01:16]} 40. Kg2 {[%clk 0:00:12]}  Bc3 {[%clk 0:01:13]} 41. Raa2 {[%clk 0:00:10]}  Rdd1 {[%clk 0:01:11]} 42. Rac2 {[%clk 0:00:09]}  Rg1+ {[%clk 0:01:09]} 43. Kf3 {[%clk 0:00:09]}  Bd4 {[%clk 0:01:08]} 44. Rxc1 {[%clk 0:00:09]}  Rxc1 {[%clk 0:01:09]} 45. h4 {[%clk 0:00:08]}  Ke7 {[%clk 0:01:04]} 46. Ra2 {[%clk 0:00:08]}  f5 {[%clk 0:00:57]} 47. Kg2 {[%clk 0:00:08]}  e5 {[%clk 0:00:56]} 48. Re2 {[%clk 0:00:08]}  e4 {[%clk 0:00:54]} 49. g4 {[%clk 0:00:08]}  Kf6 {[%clk 0:00:47]} 50. gxf5 {[%clk 0:00:08]}  Kxf5 {[%clk 0:00:47]} 51. Bd5 {[%clk 0:00:09]}  e3 {[%clk 0:00:47]} 52. fxe3 {[%clk 0:00:08]}  Be5 {[%clk 0:00:48]} 53. e4+ {[%clk 0:00:08]}  Kg4 {[%clk 0:00:44]} 54. Rf2 {[%clk 0:00:05]}  Bd4 {[%clk 0:00:42]} 55. Be6+ {[%clk 0:00:04]}  Kxh4 {[%clk 0:00:42]} 56. Rf4+ {[%clk 0:00:04]}  Kg5 {[%clk 0:00:42]} 57. Rf5+ {[%clk 0:00:04]}  Kg6 {[%clk 0:00:43]} 58. Bd5 {[%clk 0:00:03]}  Bf6 {[%clk 0:00:40]} 59. Kf3 {[%clk 0:00:03]}  h5 {[%clk 0:00:38]} 60. Kg2 {[%clk 0:00:04]}  h4 {[%clk 0:00:36]} 61. Rf3 {[%clk 0:00:04]}  Be5 {[%clk 0:00:33]} 62. Rf1 {[%clk 0:00:05]}  Rc2+ {[%clk 0:00:33]} 63. Rf2 {[%clk 0:00:05]}  Rc3 {[%clk 0:00:34]} 64. Rf3 {[%clk 0:00:04]}  Rc2+ {[%clk 0:00:33]} 65. Kh3 {[%clk 0:00:01]}  Bf6 {[%clk 0:00:28]} 66. Rf5 {[%clk 0:00:02]}  Rc3+ {[%clk 0:00:27]} 67. Kg4 {[%clk 0:00:02]}  Rg3+ {[%clk 0:00:26]} 68. Kf4 {[%clk 0:00:02]}  Bg5+ {[%clk 0:00:25]} 69. Ke5 {[%clk 0:00:03]}  h3 {[%clk 0:00:25]} 70. Ke6 {[%clk 0:00:02]}  h2 {[%clk 0:00:21]} 71. e5 {[%clk 0:00:02]}  Rg1 {[%clk 0:00:21]} 72. Rf8 {[%clk 0:00:02]}  Bh6 {[%clk 0:00:18]} 73. Rg8+ {[%clk 0:00:02]}  Bg7 {[%clk 0:00:18]} 74. Rc8 {[%clk 0:00:02]}  Re1 {[%clk 0:00:16]} 75. Rxc5 {[%clk 0:00:02]}  Rxe5+ {[%clk 0:00:17]} 76. Kd6 {[%clk 0:00:02]}  Rxd5+ {[%clk 0:00:17]} 77. Rxd5 {[%clk 0:00:03]}  h1=Q {[%clk 0:00:17]} 78. b4 {[%clk 0:00:04]}  Qh2+ {[%clk 0:00:17]} 79. Kc6 {[%clk 0:00:03]}  Qb8 {[%clk 0:00:17]} 80. b5 {[%clk 0:00:04]}  Kf7 {[%clk 0:00:15]} 81. Rd7+ {[%clk 0:00:04]}  Kf6 {[%clk 0:00:13]} 82. Rd6+ {[%clk 0:00:05]}  Ke5 {[%clk 0:00:12]} 83. Rd5+ {[%clk 0:00:05]}  Ke6 {[%clk 0:00:13]} 84. b6 {[%clk 0:00:05]}  Qc8+ {[%clk 0:00:12]} 85. Kb5 {[%clk 0:00:05]}  Kxd5 {[%clk 0:00:13]} 86. b7 {[%clk 0:00:05]}  Qxb7+ {[%clk 0:00:13]} 87. Ka5 {[%clk 0:00:06]}  Bc3+ {[%clk 0:00:12]} 88. Ka4 {[%clk 0:00:07]}  Qb4# {[%clk 0:00:13]} 0-1


[Site "https://www.chess.com"]

[Event "Titled Tuesday Blitz December 27 Late 2022"]
[White "Gorodetzky, David"]
[Black "Moral Garcia, Serafin"]
[WhiteFideId "2813416"]
[BlackFideId "2201925"]
[WhiteElo "2485"]
[BlackElo "2238"]
[Result "1-0"]
[Round "02"]
[TimeControl "180+2"]
[Date "2022.12.27"]
[WhiteClock "0:00:07"]
[BlackClock "0:00:04"]

1. Nf3 {[%clk 0:02:52]}  Nf6 {[%clk 0:02:59]} 2. g3 {[%clk 0:02:50]}  g6 {[%clk 0:02:58]} 3. b3 {[%clk 0:02:50]}  Bg7 {[%clk 0:02:58]} 4. Bb2 {[%clk 0:02:51]}  c5 {[%clk 0:02:58]} 5. c4 {[%clk 0:02:50]}  O-O {[%clk 0:02:58]} 6. Bg2 {[%clk 0:02:50]}  Nc6 {[%clk 0:02:57]} 7. d4 {[%clk 0:02:50]}  Ne4 {[%clk 0:02:55]} 8. O-O {[%clk 0:02:47]}  d6 {[%clk 0:02:53]} 9. e3 {[%clk 0:02:46]}  Bg4 {[%clk 0:02:50]} 10. h3 {[%clk 0:02:35]}  Bxf3 {[%clk 0:02:49]} 11. Bxf3 {[%clk 0:02:34]}  Ng5 {[%clk 0:02:33]} 12. Bxc6 {[%clk 0:02:22]}  bxc6 {[%clk 0:02:32]} 13. Kg2 {[%clk 0:02:14]}  Qd7 {[%clk 0:02:27]} 14. Qg4 {[%clk 0:02:12]}  Qxg4 {[%clk 0:02:19]} 15. hxg4 {[%clk 0:02:13]}  Ne6 {[%clk 0:02:15]} 16. Rd1 {[%clk 0:02:13]}  cxd4 {[%clk 0:02:15]} 17. exd4 {[%clk 0:01:49]}  c5 {[%clk 0:01:56]} 18. Nc3 {[%clk 0:01:49]}  Nxd4 {[%clk 0:01:55]} 19. Rd2 {[%clk 0:01:43]}  f5 {[%clk 0:01:32]} 20. Re1 {[%clk 0:01:30]}  e5 {[%clk 0:01:24]} 21. Nb5 {[%clk 0:01:19]}  Rfd8 {[%clk 0:01:08]} 22. Bxd4 {[%clk 0:01:17]}  cxd4 {[%clk 0:01:04]} 23. gxf5 {[%clk 0:01:13]}  gxf5 {[%clk 0:01:03]} 24. f3 {[%clk 0:01:09]}  a6 {[%clk 0:01:01]} 25. Nc7 {[%clk 0:01:09]}  Ra7 {[%clk 0:01:01]} 26. Nd5 {[%clk 0:01:09]}  a5 {[%clk 0:00:59]} 27. Rh1 {[%clk 0:00:58]}  Re8 {[%clk 0:00:50]} 28. Rh5 {[%clk 0:00:58]}  Rf8 {[%clk 0:00:47]} 29. Re2 {[%clk 0:00:43]}  a4 {[%clk 0:00:43]} 30. b4 {[%clk 0:00:43]}  a3 {[%clk 0:00:23]} 31. b5 {[%clk 0:00:42]}  Ra4 {[%clk 0:00:23]} 32. Ne7+ {[%clk 0:00:39]}  Kf7 {[%clk 0:00:22]} 33. Nxf5 {[%clk 0:00:36]}  Kg6 {[%clk 0:00:22]} 34. g4 {[%clk 0:00:36]}  Rxc4 {[%clk 0:00:20]} 35. Nxd6 {[%clk 0:00:36]}  Rc3 {[%clk 0:00:21]} 36. Rf2 {[%clk 0:00:34]}  d3 {[%clk 0:00:20]} 37. Ne4 {[%clk 0:00:34]}  Rc2 {[%clk 0:00:20]} 38. Rh1 {[%clk 0:00:34]}  Rfc8 {[%clk 0:00:19]} 39. Rd1 {[%clk 0:00:33]}  Rxf2+ {[%clk 0:00:18]} 40. Kxf2 {[%clk 0:00:27]}  Rb8 {[%clk 0:00:18]} 41. Rb1 {[%clk 0:00:25]}  Bh6 {[%clk 0:00:18]} 42. b6 {[%clk 0:00:21]}  Kf7 {[%clk 0:00:14]} 43. b7 {[%clk 0:00:19]}  Ke7 {[%clk 0:00:12]} 44. Nc5 {[%clk 0:00:19]}  d2 {[%clk 0:00:12]} 45. Ke2 {[%clk 0:00:19]}  e4 {[%clk 0:00:09]} 46. fxe4 {[%clk 0:00:18]}  Bf4 {[%clk 0:00:08]} 47. Nd3 {[%clk 0:00:15]}  Bc7 {[%clk 0:00:07]} 48. Kxd2 {[%clk 0:00:15]}  Rg8 {[%clk 0:00:07]} 49. Ke3 {[%clk 0:00:14]}  Bb8 {[%clk 0:00:06]} 50. Rh1 {[%clk 0:00:15]}  Rxg4 {[%clk 0:00:06]} 51. Rxh7+ {[%clk 0:00:14]}  Kd6 {[%clk 0:00:07]} 52. Rh8 {[%clk 0:00:14]}  Kc7 {[%clk 0:00:07]} 53. Nc5 {[%clk 0:00:13]}  Rg3+ {[%clk 0:00:07]} 54. Kd4 {[%clk 0:00:12]}  Rg2 {[%clk 0:00:05]} 55. Rh7+ {[%clk 0:00:05]}  Kb6 {[%clk 0:00:05]} 56. Rh8 {[%clk 0:00:05]}  Ka7 {[%clk 0:00:05]} 57. Rh3 {[%clk 0:00:04]}  Rxa2 {[%clk 0:00:04]} 58. Rd3 {[%clk 0:00:04]}  Ra1 {[%clk 0:00:03]} 59. e5 {[%clk 0:00:05]}  Re1 {[%clk 0:00:02]} 60. Rxa3+ {[%clk 0:00:04]}  Kb6 {[%clk 0:00:03]} 61. Nd7+ {[%clk 0:00:05]}  Kxb7 {[%clk 0:00:03]} 62. Rb3+ {[%clk 0:00:05]}  Kc7 {[%clk 0:00:03]} 63. Nxb8 {[%clk 0:00:06]}  Rd1+ {[%clk 0:00:04]} 64. Ke4 {[%clk 0:00:06]}  Kd8 {[%clk 0:00:02]} 65. Nc6+ {[%clk 0:00:06]}  Ke8 {[%clk 0:00:01]} 66. Nd4 {[%clk 0:00:07]}  Re1+ {[%clk 0:00:02]} 67. Kd5 {[%clk 0:00:07]}  Rf1 {[%clk 0:00:02]} 68. Rb8+ {[%clk 0:00:07]}  Ke7 {[%clk 0:00:03]} 69. Rb7+ {[%clk 0:00:08]}  Ke8 {[%clk 0:00:03]} 70. e6 {[%clk 0:00:09]}  Kd8 {[%clk 0:00:04]} 71. Kd6 {[%clk 0:00:09]}  Rf7 {[%clk 0:00:04]} 72. Rb8# {[%clk 0:00:07]} 1-0


[Site "https://www.chess.com"]